[Event "Portuguese-ch U10-12 2022"]
[Site "Fatima"]
[Date "2022.04.12"]
[Round "5.3"]
[White "Silva, Daniel Medeiros Avel"]
[Black "Savchenko, Alexandr"]
[Result "1-0"]
[ECO "A04"]
[WhiteElo "2024"]
[BlackElo "2130"]
[Annotator "TA"]
[PlyCount "51"]
[EventDate "2022.04.10"]
[EventType "swiss"]
[EventCountry "POR"]
[SourceTitle "playchess.com"]
[Source "ChessBase"]
[SourceQuality "1"]
[TimeControl "5400+30"]

{[%evp 13,51,-18,-11,-22,8,-51,-51,-71,-31,-88,-36,-70,-35,-42,37,36,227,220,222,230,368,353,547,547,547,547,525,464,488,336,312,302,604,586,1241,1193,2355,2314,1949,1893]} 1. Nf3 {[%emt 0:04:59]} b6 {[%emt 0:00:33]} 2. d4 {[%emt 0:03:57]} Bb7 {[%emt 0:00:23]} 3. e3 {[%emt 0:03:44]} e6 {[%emt 0:00:19]} 4. Bd3 {[%emt 0:01:29]} Nf6 {[%emt 0:00:27]} 5. O-O {[%emt 0:00:44]} d5 {[%emt 0:00:34]} 6. c3 {[%emt 0:02:04]} Nbd7 {[%emt 0:01:08]} 7. Nbd2 {[%emt 0:07:25]} Bd6 {[%emt 0:00:40]} 8. Re1 {[%emt 0:00:56] D05: Colle System with ...e6.} c5 {[%emt 0:01:34] [#]} (8... Ne4 {is more complex.} 9. c4 Rc8 10. b3 O-O) 9. Nf1 $146 {[%emt 0:00:51]} (9. e4 $11 Nxe4 10. Nxe4 dxe4 11. Bxe4 Bxe4 12. Rxe4) ({Predecessor:} 9. e4 dxe4 10. Nxe4 Nxe4 11. Bxe4 Bxe4 12. Rxe4 O-O 13. dxc5 bxc5 14. Qxd6 {1-0 (14) Cruz,J (2393)-Devaev,A (2325) Chess.com INT 2021}) 9... O-O {[%emt 0:01:19]} 10. Ng3 {[%emt 0:01:04] Black is slightly better.} Rc8 {[%emt 0:02:05]} 11. a4 {[%emt 0:00:45]} (11. b3 $15) 11... c4 {[%emt 0:01:30]} (11... Ne4 $17) 12. Bb1 {[%emt 0:01:27]} a5 {[%emt 0:00:10]} 13. Nd2 {[%emt 0:03:44]} Ba6 {[%emt 0:01:55]} (13... Re8 $15) 14. e4 $14 {[%emt 0:01:02][%cal Be3e4,Be4e5][%mdl 32]} Bc7 {[%emt 0:00:55] Black cannot hold the game after this.} (14... Bxg3 $14 15. hxg3 e5) 15. e5 $18 {[%emt 0:00:57]} Ne8 {[%emt 0:00:48]} 16. Nf3 {[%emt 0:02:09]} b5 {[%emt 0:01:02]} (16... Qe7 $142 17. Bg5 (17. Qc2 g6 $16) 17... f6) 17. axb5 {[%emt 0:00:31]} (17. Qc2 g6 18. Bg5 f6 $18) 17... Bxb5 {[%emt 0:00:08] [#]} (17... Bb7 {was necessary.} 18. Qe2 h6) 18. Bxh7+ $1 {[%emt 0:03:18][%mdl 512]} Kxh7 {[%emt 0:01:12]} 19. Ng5+ {[%emt 0:00:04]} ({Not} 19. Bg5 f6 20. exf6 Ndxf6 21. Rxe6 Bd7 22. Qc2+ Kg8 $15) 19... Kg8 {[%emt 0:00:25][%cal Od7f6]} 20. Qh5 {[%emt 0:00:10][%csl Gg5][%cal Rh5h7]} Nef6 {[%emt 0:00:42] Inhibits Qh7+.} 21. exf6 {[%emt 0:00:12]} Nxf6 {[%emt 0:00:23]} 22. Qh4 {[%emt 0:02:08]} Bxg3 $2 {[%emt 0:01:01]} (22... Qd6 23. Re5 Bd8) 23. fxg3 {[%emt 0:03:59] [#] Rf1 is the strong threat. White is clearly winning.} a4 {[%emt 0:00:47]} 24. Rf1 {[%emt 0:00:40][%cal Of1f6] Threatening mate with Rxf6!} Nh5 {[%emt 0:03:04]} 25. Qxh5 {[%emt 0:00:07][%csl Gg5][%cal Rh5h7]} Qxg5 {[%emt 0:00:30]} 26. Bxg5 {[%emt 0:00:11] Weighted Error Value: White=0.24 (precise) /Black=0.81} 1-0

[Event "Portuguese-ch U10-12 2022"]
[Site "Fatima"]
[Date "2022.04.12"]
[Round "5.4"]
[White "Fernandes, Martim"]
[Black "Almeida, Diogo Rodrigues Sant"]
[Result "0-1"]
[ECO "B90"]
[WhiteElo "1413"]
[BlackElo "1467"]
[Annotator "NA RC"]
[PlyCount "74"]
[EventDate "2022.04.10"]
[EventType "swiss"]
[EventCountry "POR"]
[SourceTitle "playchess.com"]
[Source "ChessBase"]
[SourceQuality "1"]
[TimeControl "5400+30"]

1. e4 {[%emt 0:00:01]} c5 {[%emt 0:00:22]} 2. Nf3 {[%emt 0:00:05]} d6 {[%emt 0:00:08]} 3. d4 {[%emt 0:00:11]} cxd4 {[%emt 0:00:03]} 4. Nxd4 {[%emt 0:00:05]} Nf6 {[%emt 0:00:11]} 5. Nc3 {[%emt 0:00:13]} a6 {[%emt 0:00:18]} 6. Bc4 {[%emt 0:00:09]} Bd7 {[%emt 0:00:52]} 7. a4 {[%emt 0:02:02]} Nc6 {[%emt 0:01:33]} 8. O-O {[%emt 0:01:54]} g6 {[%emt 0:02:03]} 9. f3 {[%emt 0:01:08]} Qb6 {[%emt 0:00:55]} 10. Nce2 {[%emt 0:01:27]} e5 {[%emt 0:00:48]} 11. a5 {[%emt 0:01:14]} Qa7 {[%emt 0:01:36]} 12. Bg5 {[%emt 0:00:59]} Bg7 {[%emt 0:00:52]} 13. Be3 {[%emt 0:05:36]} exd4 {[%emt 0:00:55]} 14. Nxd4 {[%emt 0:00:02]} Qb8 {[%emt 0:01:43]} 15. Nb3 {[%emt 0:04:45]} O-O {[%emt 0:01:11]} 16. Bb6 {[%emt 0:00:44]} Be6 {[%emt 0:00:44]} 17. Be2 {[%emt 0:01:20]} Nd7 {[%emt 0:00:37]} 18. Bd4 {[%emt 0:02:58]} Nxd4 {[%emt 0:02:08]} 19. Nxd4 {[%emt 0:00:03]} Qa7 {[%emt 0:00:32]} 20. c3 {[%emt 0:00:39]} d5 {[%emt 0:00:35]} 21. exd5 {[%emt 0:00:44]} Bxd5 {[%emt 0:00:11]} 22. Kh1 {[%emt 0:00:13]} Bxd4 {[%emt 0:00:37]} 23. cxd4 {[%emt 0:00:12]} Rac8 {[%emt 0:00:52]} 24. Qa4 {[%emt 0:00:31]} Bc6 {[%emt 0:01:11]} 25. Qb4 {[%emt 0:00:31]} Nf6 {[%emt 0:00:48]} 26. Qd6 {[%emt 0:01:55]} Kg7 {[%emt 0:01:11]} 27. Rfd1 {[%emt 0:02:05]} Rcd8 {[%emt 0:01:29]} 28. Qb4 {[%emt 0:00:35]} Rfe8 {[%emt 0:00:37]} 29. Bf1 {[%emt 0:01:08]} Nd5 {[%emt 0:01:00]} 30. Qd2 {[%emt 0:01:18]} Ne3 {[%emt 0:00:18]} 31. Re1 {[%emt 0:00:46]} Nxf1 {[%emt 0:00:11]} 32. Rxf1 {[%emt 0:00:21]} Qxd4 {[%emt 0:00:11]} 33. Qc2 {[%emt 0:00:42]} Qd2 {[%emt 0:00:48]} 34. Qb3 {[%emt 0:00:48]} Re2 {[%emt 0:00:27]} 35. Rad1 {[%emt 0:01:31]} Qg5 {[%emt 0:00:47]} 36. Rg1 {[%emt 0:01:23]} Rxd1 {[%emt 0:00:35]} 37. Qxd1 {[%emt 0:00:04]} Qd2 {[%emt 0:00:28]} 0-1

[Event "Portuguese-ch U10-12 2022"]
[Site "Fatima"]
[Date "2022.04.12"]
[Round "5.5"]
[White "Abreu, Duarte Ferreira"]
[Black "Faryma, Matviy"]
[Result "0-1"]
[ECO "C70"]
[WhiteElo "1125"]
[BlackElo "1426"]
[Annotator "NA RC"]
[PlyCount "52"]
[EventDate "2022.04.10"]
[EventType "swiss"]
[EventCountry "POR"]
[SourceTitle "playchess.com"]
[Source "ChessBase"]
[SourceQuality "1"]
[TimeControl "5400+30"]

1. e4 {[%emt 0:00:03]} e5 {[%emt 0:00:01]} 2. Nf3 {[%emt 0:00:05]} Nc6 {[%emt 0:00:10]} 3. Bb5 {[%emt 0:00:06]} a6 {[%emt 0:00:24]} 4. Ba4 {[%emt 0:00:07]} b5 {[%emt 0:00:29]} 5. Bb3 {[%emt 0:00:07]} Bc5 {[%emt 0:00:52]} 6. c3 {[%emt 0:01:10]} Nf6 {[%emt 0:00:12]} 7. Bc2 {[%emt 0:00:05]} d6 {[%emt 0:01:04]} 8. O-O {[%emt 0:00:09]} O-O {[%emt 0:00:27]} 9. h3 {[%emt 0:00:14]} h6 {[%emt 0:00:06]} 10. Re1 {[%emt 0:00:25]} Bb6 {[%emt 0:00:24]} 11. d4 {[%emt 0:01:16]} exd4 {[%emt 0:02:27]} 12. cxd4 {[%emt 0:00:06]} Bb7 {[%emt 0:01:52]} 13. a3 {[%emt 0:00:39]} Re8 {[%emt 0:00:29]} 14. Nc3 {[%emt 0:00:05]} Qd7 {[%emt 0:01:59]} 15. Bf4 {[%emt 0:03:06]} Rad8 {[%emt 0:01:15]} 16. Qd2 {[%emt 0:02:31]} d5 {[%emt 0:08:55]} 17. e5 {[%emt 0:06:23]} Ne4 {[%emt 0:00:12]} 18. Nxe4 {[%emt 0:00:41]} dxe4 {[%emt 0:00:04]} 19. Rxe4 {[%emt 0:00:06]} Nxd4 {[%emt 0:01:23]} 20. Rxd4 {[%emt 0:23:55]} Bxd4 {[%emt 0:00:15]} 21. Rd1 {[%emt 0:00:12]} Bxf3 {[%emt 0:01:59]} 22. gxf3 {[%emt 0:00:07]} Qxh3 {[%emt 0:00:26]} 23. Be3 {[%emt 0:00:53]} c5 {[%emt 0:00:19]} 24. b4 {[%emt 0:00:25]} Qxf3 {[%emt 0:02:43]} 25. bxc5 {[%emt 0:02:07]} Bxe3 {[%emt 0:00:16]} 26. Qxd8 {[%emt 0:07:44]} Bxf2+ {[%emt 0:00:09]} 0-1

[Event "Portuguese-ch U10-12 2022"]
[Site "Fatima"]
[Date "2022.04.12"]
[Round "5.6"]
[White "Tarelho, Bruna Silva"]
[Black "Nogueira, Rafael Calade"]
[Result "1/2-1/2"]
[ECO "B10"]
[WhiteElo "1187"]
[BlackElo "1263"]
[Annotator "NA RC"]
[PlyCount "108"]
[EventDate "2022.04.10"]
[EventType "swiss"]
[EventCountry "POR"]
[SourceTitle "playchess.com"]
[Source "ChessBase"]
[SourceQuality "1"]
[TimeControl "5400+30"]

1. e4 {[%emt 0:00:03]} c6 {[%emt 0:00:40]} 2. Nf3 {[%emt 0:00:23]} d5 {[%emt 0:00:17]} 3. Nc3 {[%emt 0:00:40]} e6 {[%emt 0:01:40]} 4. d4 {[%emt 0:03:11]} Bb4 {[%emt 0:01:34]} 5. Bd3 {[%emt 0:01:50]} Nf6 {[%emt 0:01:29]} 6. Qe2 {[%emt 0:02:39]} O-O {[%emt 0:02:40]} 7. e5 {[%emt 0:04:02]} Nfd7 {[%emt 0:01:00]} 8. O-O {[%emt 0:01:48]} h6 {[%emt 0:06:06]} 9. Bf4 {[%emt 0:05:41]} c5 {[%emt 0:03:09]} 10. Qe1 {[%emt 0:07:36]} Nc6 {[%emt 0:04:06]} 11. a3 {[%emt 0:05:09]} Ba5 {[%emt 0:14:49]} 12. dxc5 {[%emt 0:07:11]} d4 {[%emt 0:03:43]} 13. Nxd4 {[%emt 0:04:44]} Nxd4 {[%emt 0:21:37]} 14. b4 {[%emt 0:00:21]} f5 {[%emt 0:11:11]} 15. bxa5 {[%emt 0:05:22]} Qxa5 {[%emt 0:01:49]} 16. Nb5 {[%emt 0:01:45]} Qxe1 {[%emt 0:03:32]} 17. Rfxe1 {[%emt 0:00:32]} Nxb5 {[%emt 0:00:15]} 18. Bxb5 {[%emt 0:00:04]} Nxc5 {[%emt 0:00:11]} 19. Bc4 {[%emt 0:06:03]} a6 {[%emt 0:04:39]} 20. Rab1 {[%emt 0:02:41]} b5 {[%emt 0:01:17]} 21. Ba2 {[%emt 0:05:33]} Re8 {[%emt 0:02:24]} 22. f3 {[%emt 0:04:51]} Bb7 {[%emt 0:01:49]} 23. Be3 {[%emt 0:02:03]} Na4 {[%emt 0:01:06]} 24. Bd4 {[%emt 0:01:23]} Rac8 {[%emt 0:00:38]} 25. Bb3 {[%emt 0:01:01]} Nc3 {[%emt 0:01:14]} 26. Bxc3 {[%emt 0:00:37]} Rxc3 {[%emt 0:00:06]} 27. Rbd1 {[%emt 0:01:13]} a5 {[%emt 0:01:15]} 28. a4 {[%emt 0:00:53]} bxa4 {[%emt 0:00:38]} 29. Bxa4 {[%emt 0:00:10]} Bc6 {[%emt 0:00:17]} 30. Bxc6 {[%emt 0:03:51]} Rxc6 {[%emt 0:00:08]} 31. Ra1 {[%emt 0:00:45]} Rc5 {[%emt 0:00:57]} 32. f4 {[%emt 0:01:31]} g5 {[%emt 0:01:00]} 33. g3 {[%emt 0:01:55]} gxf4 {[%emt 0:00:46]} 34. gxf4 {[%emt 0:00:29]} Ra8 {[%emt 0:01:10]} 35. Re2 {[%emt 0:01:28]} a4 {[%emt 0:00:36]} 36. Kg2 {[%emt 0:01:16]} a3 {[%emt 0:00:36]} 37. Rd2 {[%emt 0:02:40]} Kf7 {[%emt 0:00:59]} 38. Kh3 {[%emt 0:01:38]} a2 {[%emt 0:00:36]} 39. Kg3 {[%emt 0:00:52]} Ra3+ {[%emt 0:01:06]} 40. Kg2 {[%emt 0:05:00]} Rc4 {[%emt 0:01:22]} 41. Rf2 {[%emt 0:00:34]} Kg6 {[%emt 0:00:32]} 42. c3 {[%emt 0:00:42]} Rcxc3 {[%emt 0:00:51]} 43. Raxa2 {[%emt 0:00:20]} Kh5 {[%emt 0:02:10]} 44. Rab2 {[%emt 0:01:21]} Ra6 {[%emt 0:01:39]} 45. Rb4 {[%emt 0:02:21]} Rac6 {[%emt 0:01:09]} 46. Rd4 {[%emt 0:00:40]} Kg4 {[%emt 0:01:40]} 47. Rd8 {[%emt 0:01:37]} Rc8 {[%emt 0:00:36]} 48. Rd6 {[%emt 0:01:28]} R3c6 {[%emt 0:00:40]} 49. Rd7 {[%emt 0:00:17]} R6c7 {[%emt 0:00:13]} 50. Rd4 {[%emt 0:00:52]} h5 51. Rd3 {[%emt 0:00:59]} Rc3 {[%emt 0:01:17]} 52. Rd7 {[%emt 0:00:19]} R3c7 {[%emt 0:00:30]} 53. Rd3 {[%emt 0:00:22]} Rc3 {[%emt 0:00:40]} 54. Rd7 {[%emt 0:00:18]} R3c7 {[%emt 0:00:27]} 1/2-1/2

[Event "Portuguese-ch U10-12 2022"]
[Site "Fatima"]
[Date "2022.04.12"]
[Round "5.7"]
[White "Araujo, Ricardo Franca P D"]
[Black "Moldovan, Lucas Gabriel"]
[Result "0-1"]
[ECO "B52"]
[WhiteElo "1405"]
[BlackElo "1575"]
[Annotator "NA RC"]
[PlyCount "54"]
[EventDate "2022.04.10"]
[EventType "swiss"]
[EventCountry "POR"]
[SourceTitle "playchess.com"]
[Source "ChessBase"]
[SourceQuality "1"]
[TimeControl "5400+30"]

1. e4 {[%emt 0:00:02]} c5 {[%emt 0:00:18]} 2. Nf3 {[%emt 0:00:07]} d6 {[%emt 0:00:21]} 3. Bb5+ {[%emt 0:00:26]} Bd7 {[%emt 0:00:10]} 4. a4 {[%emt 0:00:25]} a6 {[%emt 0:00:26]} 5. Bxd7+ {[%emt 0:00:21]} Qxd7 {[%emt 0:00:43]} 6. O-O {[%emt 0:00:25]} Nf6 {[%emt 0:00:28]} 7. Re1 {[%emt 0:00:23]} Nc6 {[%emt 0:01:04]} 8. c3 {[%emt 0:00:41]} e6 {[%emt 0:00:31]} 9. d4 {[%emt 0:01:01]} d5 {[%emt 0:01:02]} 10. e5 {[%emt 0:02:54]} Ne4 {[%emt 0:00:17]} 11. Nbd2 {[%emt 0:01:30]} Nxd2 {[%emt 0:00:54]} 12. Bxd2 {[%emt 0:00:15]} c4 {[%emt 0:01:40]} 13. a5 {[%emt 0:05:05]} Be7 {[%emt 0:01:24]} 14. b4 {[%emt 0:03:31]} cxb3 {[%emt 0:01:32]} 15. Qxb3 {[%emt 0:00:13]} Na7 {[%emt 0:00:20]} 16. Be3 {[%emt 0:06:03]} Rc8 {[%emt 0:03:04]} 17. Rec1 {[%emt 0:08:20]} O-O {[%emt 0:04:00]} 18. Nd2 {[%emt 0:04:18]} Nb5 {[%emt 0:03:22]} 19. Qb2 {[%emt 0:04:07]} Rfd8 {[%emt 0:03:41]} 20. g3 {[%emt 0:04:13]} Rc7 {[%emt 0:02:34]} 21. c4 {[%emt 0:04:41]} dxc4 {[%emt 0:00:34]} 22. Rxc4 {[%emt 0:00:08]} Rxc4 {[%emt 0:00:40]} 23. Nxc4 {[%emt 0:00:07]} Nxd4 {[%emt 0:00:41]} 24. Bxd4 {[%emt 0:00:38]} Qxd4 {[%emt 0:00:10]} 25. Qxb7 {[%emt 0:00:22]} Qxa1+ {[%emt 0:00:53]} 26. Kg2 {[%emt 0:00:07]} Bf8 {[%emt 0:01:50]} 27. Qc7 {[%emt 0:00:14]} Qd4 {[%emt 0:00:08]} 0-1

[Event "Portuguese-ch U10-12 2022"]
[Site "Fatima"]
[Date "2022.04.12"]
[Round "5.8"]
[White "Arbulu Rocha, Miguel"]
[Black "Filipe, Gustavo Castro"]
[Result "1/2-1/2"]
[ECO "A13"]
[WhiteElo "1931"]
[BlackElo "1401"]
[Annotator "RC"]
[PlyCount "126"]
[EventDate "2022.04.10"]
[EventType "swiss"]
[EventCountry "POR"]
[SourceTitle "playchess.com"]
[Source "ChessBase"]
[SourceQuality "1"]
[TimeControl "5400+30"]

1. Nf3 {[%emt 0:03:03]} Nf6 {[%emt 0:00:51]} 2. g3 {[%emt 0:00:12]} e6 {[%emt 0:00:38]} 3. Bg2 {[%emt 0:00:36]} d5 {[%emt 0:00:37]} 4. c4 {[%emt 0:01:09]} dxc4 {[%emt 0:00:33]} 5. Qa4+ {[%emt 0:02:16]} c6 {[%emt 0:01:59]} 6. Qxc4 {[%emt 0:02:22]} Be7 {[%emt 0:00:45]} 7. O-O {[%emt 0:00:33]} O-O {[%emt 0:00:15]} 8. d4 {[%emt 0:01:45]} Nbd7 {[%emt 0:01:12]} 9. Nc3 {[%emt 0:02:16]} Nb6 {[%emt 0:02:16]} 10. Qd3 {[%emt 0:03:14]} c5 {[%emt 0:04:33]} 11. e3 {[%emt 0:03:05]} Qc7 {[%emt 0:04:03]} 12. Rd1 {[%emt 0:02:34]} a6 {[%emt 0:04:50]} 13. b3 {[%emt 0:03:12]} Rd8 {[%emt 0:03:20]} 14. Bb2 {[%emt 0:03:07]} cxd4 {[%emt 0:02:11]} 15. exd4 {[%emt 0:01:02]} Nbd5 {[%emt 0:00:51]} 16. Rac1 {[%emt 0:01:53]} Qd6 {[%emt 0:02:21]} 17. Ne5 {[%emt 0:03:35]} b5 {[%emt 0:08:40]} 18. Qe2 Bb7 {[%emt 0:04:54]} 19. a4 {[%emt 0:18:41]} Nxc3 {[%emt 0:02:14]} 20. Rxc3 {[%emt 0:01:01]} Bxg2 {[%emt 0:00:24]} 21. Kxg2 {[%emt 0:00:23]} bxa4 {[%emt 0:02:36]} 22. bxa4 {[%emt 0:01:44]} Rdc8 {[%emt 0:01:23]} 23. Rdc1 {[%emt 0:02:03]} Qd5+ {[%emt 0:04:43]} 24. Kg1 {[%emt 0:00:54]} Qb7 {[%emt 0:01:02]} 25. Qc2 {[%emt 0:05:09]} Rxc3 {[%emt 0:01:04]} 26. Qxc3 {[%emt 0:00:32]} Nd5 {[%emt 0:01:05]} 27. Qc2 {[%emt 0:04:06]} f6 {[%emt 0:07:18]} 28. Nd3 {[%emt 0:01:47]} Nb4 {[%emt 0:07:34]} 29. Qb3 {[%emt 0:01:08]} Qd5 {[%emt 0:00:07]} 30. Qxd5 {[%emt 0:00:51]} Nxd5 {[%emt 0:00:13]} 31. Nc5 {[%emt 0:02:55]} e5 {[%emt 0:01:04]} 32. dxe5 {[%emt 0:01:13]} fxe5 {[%emt 0:01:13]} 33. Bxe5 {[%emt 0:00:49]} Rc8 {[%emt 0:00:13]} 34. Nd3 {[%emt 0:00:15]} Rxc1+ {[%emt 0:00:20]} 35. Nxc1 {[%emt 0:00:07]} Nb6 {[%emt 0:00:28]} 36. a5 {[%emt 0:00:34]} Nc4 {[%emt 0:00:24]} 37. Bc3 {[%emt 0:00:10]} Bd8 {[%emt 0:00:13]} 38. Nb3 {[%emt 0:00:26]} Kf7 {[%emt 0:00:42]} 39. Kf1 {[%emt 0:00:20]} g6 {[%emt 0:00:11]} 40. Ke2 {[%emt 0:00:14]} Ke6 {[%emt 0:00:48]} 41. Nc5+ {[%emt 0:00:23]} Kd5 {[%emt 0:00:23]} 42. Nxa6 {[%emt 0:04:25]} Bxa5 {[%emt 0:00:29]} 43. Bxa5 Nxa5 {[%emt 0:00:06]} 44. Nc7+ {[%emt 0:01:17]} Kd6 {[%emt 0:00:30]} 45. Nb5+ {[%emt 0:00:32]} Ke5 {[%emt 0:00:22]} 46. f4+ {[%emt 0:00:29]} Kf5 {[%emt 0:00:45]} 47. Kf3 {[%emt 0:00:13]} Nc6 {[%emt 0:01:32]} 48. g4+ {[%emt 0:00:18]} Kf6 {[%emt 0:00:14]} 49. Ke4 {[%emt 0:00:20]} h6 {[%emt 0:05:35]} 50. h4 {[%emt 0:00:56]} g5 {[%emt 0:00:30]} 51. h5 {[%emt 0:00:44]} gxf4 {[%emt 0:00:35]} 52. Kxf4 {[%emt 0:00:05]} Nb4 {[%emt 0:00:16]} 53. Nd4 {[%emt 0:00:54]} Nd3+ {[%emt 0:00:24]} 54. Kg3 {[%emt 0:01:25]} Ne5 {[%emt 0:01:15]} 55. Nf3 {[%emt 0:00:28]} Nd3 {[%emt 0:00:28]} 56. Kh4 {[%emt 0:00:54]} Nf4 {[%emt 0:01:17]} 57. Kg3 {[%emt 0:00:14]} Nd3 {[%emt 0:00:12]} 58. Nd2 {[%emt 0:00:29]} Ke5 {[%emt 0:00:24]} 59. g5 {[%emt 0:00:45]} hxg5 {[%emt 0:00:27]} 60. Kg4 {[%emt 0:00:20]} Nf4 {[%emt 0:00:35]} 61. h6 {[%emt 0:01:11]} Kf6 {[%emt 0:00:06]} 62. Ne4+ {[%emt 0:00:11]} Kg6 {[%emt 0:00:10]} 63. Nxg5 {[%emt 0:00:09]} Kxh6 {[%emt 0:00:09]} 1/2-1/2

[Event "Portuguese-ch U10-12 2022"]
[Site "Fatima"]
[Date "2022.04.13"]
[Round "6.1"]
[White "Farias, David Nuno M E"]
[Black "De Sousa Silva, Lucas Jose"]
[Result "1-0"]
[ECO "C78"]
[WhiteElo "1826"]
[BlackElo "1656"]
[Annotator "NA RC"]
[PlyCount "83"]
[EventDate "2022.04.10"]
[EventType "swiss"]
[EventCountry "POR"]
[SourceTitle "playchess.com"]
[Source "ChessBase"]
[SourceQuality "1"]
[TimeControl "5400+30"]

1. e4 {[%emt 0:00:01]} e5 {[%emt 0:00:06]} 2. Nf3 {[%emt 0:00:15]} Nc6 {[%emt 0:00:07]} 3. Bb5 a6 {[%emt 0:00:34]} 4. Ba4 {[%emt 0:00:30]} Nf6 {[%emt 0:00:46]} 5. O-O {[%emt 0:00:23]} b5 {[%emt 0:04:28]} 6. Bb3 {[%emt 0:00:07]} Bc5 {[%emt 0:00:07]} 7. c3 {[%emt 0:11:34]} d6 {[%emt 0:01:25]} 8. d4 {[%emt 0:05:07]} Bb6 {[%emt 0:01:37]} 9. h3 {[%emt 0:12:59]} h6 {[%emt 0:02:29]} 10. Be3 {[%emt 0:12:13]} O-O {[%emt 0:03:06]} 11. Qe2 {[%emt 0:09:35]} Bb7 {[%emt 0:04:02]} 12. Nbd2 {[%emt 0:02:39]} Re8 {[%emt 0:02:10]} 13. d5 {[%emt 0:02:22]} Nb8 {[%emt 0:03:30]} 14. Bxb6 {[%emt 0:02:07]} cxb6 {[%emt 0:00:09]} 15. Nh4 {[%emt 0:06:57]} g6 {[%emt 0:03:36]} 16. Bc2 Bc8 {[%emt 0:01:54]} 17. Nhf3 {[%emt 0:05:45]} Bd7 {[%emt 0:04:52]} 18. Qe3 {[%emt 0:02:04]} Kg7 {[%emt 0:00:50]} 19. a4 {[%emt 0:02:31]} bxa4 {[%emt 0:03:43]} 20. Nc4 {[%emt 0:04:52]} Bb5 {[%emt 0:01:22]} 21. Nxb6 {[%emt 0:00:15]} Bxf1 {[%emt 0:03:52]} 22. Nxa8 $16 {[%emt 0:00:14]} ({Don't take} 22. Kxf1 Ra7 $14) 22... Nbd7 {[%emt 0:01:27]} 23. Kxf1 {[%emt 0:00:50]} Qxa8 {[%emt 0:00:08]} (23... Qb8 $16 {was necessary.}) 24. Bxa4 {[%emt 0:00:44]} a5 {[%emt 0:01:14]} 25. c4 {[%emt 0:09:29]} (25. Bb5 $18) 25... Qb7 {[%emt 0:02:07]} 26. Bb5 {[%emt 0:00:55]} Ra8 {[%emt 0:03:00]} 27. Qe1 {[%emt 0:01:22]} Nb8 {[%emt 0:04:05]} 28. Rxa5 Rxa5 {[%emt 0:03:30]} 29. Qxa5 {[%emt 0:02:24]} Nxe4 {[%emt 0:00:13]} 30. Ke2 {[%emt 0:03:19]} f5 {[%emt 0:01:21]} 31. Nd2 {[%emt 0:00:43]} Nf6 {[%emt 0:01:52]} 32. Qd8 {[%emt 0:02:29]} Nbd7 {[%emt 0:01:24]} 33. Qe7+ {[%emt 0:00:00]} Kh8 {[%emt 0:00:00]} 34. Qxd6 {[%emt 0:00:05]} Qa7 {[%emt 0:00:21]} 35. b4 {[%emt 0:02:15]} e4 {[%emt 0:00:58]} 36. c5 {[%emt 0:00:47]} f4 {[%emt 0:01:56]} 37. Bxd7 {[%emt 0:00:34]} Nxd7 {[%emt 0:00:11]} 38. Nxe4 {[%emt 0:00:26]} Qa2+ {[%emt 0:00:29]} 39. Nd2 {[%emt 0:00:05]} Qa7 {[%emt 0:00:21]} 40. Qxf4 {[%emt 0:00:44]} Qb7 {[%emt 0:00:32]} 41. c6 {[%emt 0:00:36]} Qa6+ {[%emt 0:01:10]} 42. Qc4 {[%emt 0:00:04]} 1-0

[Event "Portuguese-ch U10-12 2022"]
[Site "Fatima"]
[Date "2022.04.13"]
[Round "6.2"]
[White "Albuquerque, Eduardo Ferreira"]
[Black "Silva, Daniel Medeiros Avel"]
[Result "0-1"]
[ECO "E06"]
[WhiteElo "1828"]
[BlackElo "2024"]
[Annotator "TA"]
[PlyCount "45"]
[EventDate "2022.04.10"]
[EventType "swiss"]
[EventCountry "POR"]
[SourceTitle "playchess.com"]
[Source "ChessBase"]
[SourceQuality "1"]
[TimeControl "5400+30"]

{[%evp 22,45,-6,-10,-6,-57,-56,-47,-43,-61,-20,-58,-29,-43,-25,-335,-71,-330,-345,-346,-348,-338,-331,-470,-471,-687]} 1. d4 d5 {[%emt 0:06:43]} 2. c4 {[%emt 0:00:34]} e6 {[%emt 0:00:07]} 3. Nf3 {[%emt 0:00:37]} Nf6 {[%emt 0:00:09]} 4. g3 {[%emt 0:00:38]} Be7 {[%emt 0:00:52]} 5. Bg2 {[%emt 0:00:30]} O-O {[%emt 0:01:01]} 6. O-O {[%emt 0:02:38]} dxc4 {[%emt 0:00:20]} 7. Qc2 {[%emt 0:00:47]} a6 {[%emt 0:02:19]} 8. Qxc4 {[%emt 0:02:37]} b5 {[%emt 0:05:09]} 9. Qc2 {[%emt 0:01:41]} Bb7 {[%emt 0:01:22]} 10. Bf4 {[%emt 0:02:26]} Nc6 {[%emt 0:03:10]} 11. Rd1 {[%emt 0:05:00]} Nb4 {[%emt 0:06:25]} 12. Qc1 {[%emt 0:04:12]} Rc8 {[%emt 0:22:25] E05: Open Catalan: 5 Nf3 Be7.} 13. a3 {[%emt 0:06:55]} (13. Nc3 $11) 13... Nbd5 $15 {[%emt 0:05:38]} 14. Nc3 {[%emt 0:10:11]} c5 $1 {[%emt 0:26:45] Black is slightly better.} 15. Nxd5 {[%emt 0:13:44]} Bxd5 {[%emt 0:06:37] [#]} 16. Qd2 $146 {[%emt 0:14:46]} ({Predecessor:} 16. dxc5 Rxc5 17. Qb1 Qa8 18. Be3 Rc4 19. Rd4 Ng4 20. Rxc4 bxc4 21. Bd4 Be4 22. Qf1 {0-1 (57) Pribyl,J (2256)-Heika,M (2270) Bayern 2018}) 16... Qb6 {[%emt 0:03:37]} 17. dxc5 {[%emt 0:02:22]} Bxc5 {[%emt 0:00:22] [#] ...Ne4 is the strong threat.} 18. Nd4 $2 {[%emt 0:01:47][%mdl 8192]} (18. e3 $11 {and White has nothing to worry.}) 18... Rfd8 $2 {[%emt 0:00:58]} (18... Bxg2 $19 19. Kxg2 Rfd8) 19. e3 $2 {[%emt 0:02:57][%mdl 8192]} (19. b4 $17 {was forced.} Be7 20. Qe3) 19... Bxg2 $19 {[%emt 0:02:41]} 20. Kxg2 {[%emt 0:00:12]} Qb7+ {[%emt 0:02:16]} 21. f3 {[%emt 0:03:18]} Rd5 {[%emt 0:01:02]} 22. Qf2 {[%emt 0:03:50]} (22. Qe2 $142 e5 23. e4 Rxd4 24. Bxe5 Rxd1 25. Rxd1) 22... e5 23. Qc2 {White did not feel at home in the position after the opening.  Weighted Error Value: White=1.06/Black=0.56} (23. Bxe5 $142 Rxe5 24. h3) 0-1